fUST/lending_fUST_20240523
["ID","MTS","AMOUNT","RATE_DAILY","PERIOD"]
[327763683,1716448244579,-301.84907546,0.00030823,4]
[327763684,1716448244589,-1000.0,0.00031,17]
[327763685,1716448244599,-739.35694942,0.00031269,2]
[327763686,1716448244608,-603.69815092,0.00031341,7]
[327763687,1716448244618,-153.78494577,0.00031434,7]
[327763688,1716448244628,-153.78494577,0.00031458,7]
[327763689,1716448244638,-150.0,0.000315,8]
[327763690,1716448244648,-300.0,0.000315,5]
[327763691,1716448244658,-153.0,0.00031507,2]
[327763692,1716448244667,-153.0,0.00031507,2]
[327763693,1716448244677,-153.0,0.00031507,2]
[327763694,1716448244687,-153.0,0.00031507,2]
[327763695,1716448244697,-153.0,0.00031507,2]
[327763696,1716448244707,-154.3386156,0.00031507,2]
[327763697,1716448244717,-153.0,0.00031507,2]
[327763698,1716448244728,-153.0,0.00031507,2]
[327763699,1716448244738,-153.0,0.00031507,2]
[327763700,1716448244748,-153.78494577,0.00031542,7]
[327763701,1716448244758,-3973.92482181,0.00031561,120]
[327763702,1716448244768,-152.26519286,0.00031585,7]
[327763703,1716448244778,-153.78494577,0.00031629,7]
[327763704,1716448244789,-153.78494577,0.00031652,7]
[327763705,1716448244800,-413.5010462,0.00031699,2]
[327763706,1716448244810,-192.4664948,0.00031699,2]
[327763707,1716448244820,-291.561811,0.00031699,2]
[327763708,1716448244831,-291.561811,0.00031699,2]
[327763709,1716448244840,-291.561811,0.00031699,2]
[327763710,1716448244851,-291.561811,0.00031699,2]
[327763711,1716448244861,-291.561811,0.00031699,2]
[327763712,1716448244871,-293.9220197,0.00031699,2]
[327763713,1716448244880,-153.78494577,0.00031775,7]
[327763714,1716448244891,-1211.75768482,0.000318,3]
[327763715,1716448244900,-1211.51545439,0.000318,3]
[327763716,1716448244911,-156.10352878,0.00031863,7]
[327763717,1716448244921,-159.54298823,0.00031876,7]
[327763718,1716448244932,-153.78494577,0.00031961,7]
[327763719,1716448244943,-153.78494577,0.00031975,7]
[327763720,1716448244954,-801.0,0.00032,3]
[327763721,1716448244965,-10000.0,0.00032,30]
[327763722,1716448244975,-1000.0,0.00032,20]
[327763723,1716448244986,-159.54298823,0.00032007,7]
[327763724,1716448244997,-1207.39630185,0.00032135,30]
[327763725,1716448245007,-153.0,0.00032329,2]
[327763726,1716448245017,-159.54298824,0.00032483,7]
[327763727,1716448245028,-300.0,0.000325,6]
[327763728,1716448245039,-153.78494577,0.00032685,7]
[327763729,1716448245048,-321.84583949,0.000327,30]
[327763730,1716448245058,-153.78494577,0.00032705,7]
[327763731,1716448245067,-153.78494577,0.00032708,7]
[327763732,1716448245078,-153.78494577,0.00032732,7]
[327763733,1716448245088,-153.78494577,0.00032792,7]
[327763734,1716448245099,-2612.2109159,0.000328,7]
[327763735,1716448245108,-153.78494577,0.00032846,7]
[327763736,1716448245119,-739.35694942,0.00032867,2]
[327763737,1716448245129,-15352.84800228,0.00032876,10]
[327763738,1716448245140,-160.0,0.00032884,3]
[327763739,1716448245150,-3034.58187944,0.000329,3]
[327763740,1716448245232,-34812.21967687,0.000329,3]
[327763747,1716448246642,-156.821,0.00027999,2]
[327763748,1716448246651,-19956.51,0.0002899,3]
[327763749,1716448246661,-6412.49238656,0.000329,3]
[327763758,1716448339440,943.15972316,0.00026505,120]
[327763759,1716448347849,2186.98689848,0.00026505,120]
[327764421,1716449133127,-156.821,0.0002091,2]
[327764422,1716449133148,-2115.17001,0.00020911,2]
[327764423,1716449133168,-1421.85579501,0.00022738,2]
[327764425,1716449227285,-645.20987447,0.00022738,2]
[327764426,1716449227305,-3980.09499401,0.00022738,2]
[327764427,1716449227442,-187.27867909,0.00024382,2]
[327764428,1716449227465,-396.136095,0.00024384,2]
[327764429,1716449227485,-99.7568473,0.00024698,2]
[327764432,1716449235154,-214.7171449,0.00024698,2]
[327764433,1716449235174,-166.666666,0.00024822,2]
[327764434,1716449235193,-254.08509978,0.00025349,2]
[327764435,1716449235212,-166.666666,0.00025499,2]
[327764436,1716449235355,-254.08509978,0.00025877,2]
[327764437,1716449235375,-166.666666,0.00026176,2]
[327764438,1716449235394,-189.83104161,0.00026405,2]
[327764439,1716449246103,-64.25405817,0.00026405,2]
[327764440,1716449246122,-456.49011547,0.00026505,2]
[327764441,1716449246142,-2220.66951456,0.00026505,2]
[327764442,1716449249113,-3980.09499401,0.00022738,2]
[327764443,1716449249136,-779.33048544,0.00026505,2]
[327764444,1716449249157,-166.666666,0.00026853,2]
[327764445,1716449249179,-921.90140479,0.0002739,2]
[327764446,1716449254139,-215.32150963,0.0002739,2]
[327764447,1716449254160,-166.666666,0.00027529,2]
[327764448,1716449254375,-29.96729335,0.000279,2]
[327764473,1716449433051,-387.0470634,0.00025,2]
[327764474,1716449433061,-156.821,0.00026574,2]
[327764475,1716449433071,-1177.8885428,0.0002685,2]
[327764476,1716449433081,-763.68618343,0.0002739,2]
[327764477,1716449433092,-13809.884379,0.000279,2]
[327764478,1716449433103,-3980.09499401,0.000279,2]
[327764479,1716449433112,-165.52862,0.000282,2]
[327764480,1716449433122,-166.666666,0.00028206,2]
[327764481,1716449433132,-1855.06596676,0.000285,7]
[327764482,1716449433143,-250.0,0.000285,2]
[327764483,1716449433153,-300.0,0.000295,2]
[327764484,1716449433163,-2067.06566948,0.00029899,2]
[327764485,1716449433172,-429.02533809,0.000299,2]
[327764486,1716449433182,-1000.0,0.00029996,5]
[327764487,1716449433192,-12136.17344283,0.0003,2]
[327764501,1716449438740,-314.47399217,0.0003,2]
[327764519,1716449443402,-376.32929,0.00024384,2]
[327764520,1716449443412,-5767.63317367,0.0003,2]
[327764521,1716449443421,-1211.6365575,0.0003,3]
[327764522,1716449443430,-228.0,0.0003,2]
[327764525,1716449443439,-1211.51545439,0.00030117,3]
[327764528,1716449443449,-376.32929,0.0003031,2]
[327764529,1716449443458,-255.13925979,0.00030383,2]
[327764530,1716449443467,-582.65547056,0.00030483,30]
[327764535,1716449444466,-654.40941547,0.00030483,30]
[327764537,1716449444522,-410.42742278,0.00030483,30]
[327764538,1716449444534,-7324.27619119,0.00030483,30]
[327764539,1716449444544,-300.0,0.000305,3]
[327764540,1716449444554,-429.02533809,0.00030859,2]
[327764541,1716449444563,-3576.53233963,0.00030949,120]
[327764542,1716449444574,-791.2,0.00031,2]
[327764543,1716449444583,-300.0,0.000315,5]
[327764544,1716449444594,-153.7849458,0.0003153,7]
[327764545,1716449444605,-926.58680817,0.00031751,4]
[327764546,1716449444615,-1211.6365575,0.000318,3]
[327764547,1716449444624,-429.02533809,0.00031818,2]
[327764548,1716449444634,-28648.88512306,0.00031854,10]
[327764549,1716449444644,-1211.51545439,0.00031924,3]
[327764550,1716449444654,-16630.42,0.00031928,3]
[327764551,1716449444668,-13858.69,0.00031928,3]
[327764552,1716449444679,-500.0,0.00031937,2]
[327764553,1716449444817,-166.73377855,0.00031937,2]
[327764554,1716449444828,-586.15269822,0.00031937,2]
[327764555,1716449444839,-500.0,0.00031937,2]
[327764556,1716449444848,-244.70690586,0.00031937,2]
[327764557,1716449444858,-607.8143714,0.00031937,2]
[327764558,1716449444867,-385.65751504,0.00031937,2]
[327764559,1716449444875,-500.0,0.00031937,2]
[327764560,1716449444884,-384.80517852,0.00031937,2]
[327764561,1716449444892,-290.27482021,0.00031937,2]
[327764562,1716449444901,-500.0,0.00031937,2]
[327764563,1716449444910,-500.0,0.00031937,2]
[327764564,1716449444919,-500.0,0.00031937,2]
[327764565,1716449444928,-500.0,0.00031937,2]
[327764566,1716449444937,-500.0,0.00031937,2]
[327764567,1716449444946,-500.0,0.00031937,2]
[327764568,1716449444955,-500.0,0.00031937,2]
[327764569,1716449444964,-500.0,0.00031937,2]
[327764570,1716449444973,-500.0,0.00031937,2]
[327764571,1716449444983,-500.0,0.00031937,2]
[327764572,1716449444994,-500.0,0.00031937,2]
[327764573,1716449445003,-500.0,0.00031937,2]
[327764574,1716449445013,-500.0,0.00031937,2]
[327764575,1716449445022,-500.0,0.00031937,2]
[327764576,1716449445031,-500.0,0.00031937,2]
[327764577,1716449445040,-500.0,0.00031937,2]
[327764578,1716449445049,-500.0,0.00031937,2]
[327764579,1716449445058,-500.0,0.00031937,2]
[327764580,1716449445067,-500.0,0.00031937,2]
[327764581,1716449445077,-500.0,0.00031937,2]
[327764582,1716449445086,-500.0,0.00031937,2]
[327764583,1716449445095,-500.0,0.00031937,2]
[327764584,1716449445105,-500.0,0.00031937,2]
[327764585,1716449445114,-500.0,0.00031937,2]
[327764586,1716449445123,-500.0,0.00031937,2]
[327764587,1716449445132,-21726.7734111,0.00031938,11]
[327764588,1716449445141,-963.22037244,0.00031999,4]
[327764589,1716449445150,-8872.89823875,0.00032,30]
[327764590,1716449445159,-783.72812694,0.00032,4]
[327764591,1716449445168,-153.7849458,0.00032091,7]
[327764592,1716449445177,-156.10352879,0.00032093,7]
[327764593,1716449445187,-153.7849458,0.00032347,7]
[327764594,1716449445196,-300.0,0.000325,6]
[327764595,1716449445205,-621.64932784,0.00032538,3]
[327764596,1716449445214,-728.0,0.00032666,120]
[327764597,1716449445223,-153.7849458,0.00032672,7]
[327764598,1716449445232,-4224.07535635,0.00032675,2]
[327764599,1716449445242,-155.2915645,0.0003274,2]
[327764600,1716449445251,-153.0,0.0003274,2]
[327764601,1716449445260,-153.0,0.0003274,2]
[327764602,1716449445269,-153.0,0.0003274,2]
[327764603,1716449445278,-153.0,0.0003274,2]
[327764604,1716449445288,-153.0,0.0003274,2]
[327764605,1716449445298,-153.0,0.0003274,2]
[327764606,1716449445307,-153.0,0.0003274,2]
[327764607,1716449445315,-153.0,0.0003274,2]
[327764608,1716449445325,-429.02533809,0.00032777,2]
[327764609,1716449445334,-417.32360569,0.00032789,2]
[327764610,1716449445343,-153.0,0.00032877,2]
[327764611,1716449445353,-274.9744639,0.00032877,2]
[327764612,1716449445361,-155.5135441,0.00032877,2]
[327764613,1716449445371,-380.1938079,0.00032877,2]
[327764614,1716449445380,-153.0,0.00032877,2]
[327764615,1716449445389,-153.0,0.00032877,2]
[327764616,1716449445399,-153.0,0.00032877,2]
[327764617,1716449445408,-153.0,0.00032877,2]
[327764618,1716449445417,-153.0,0.00032877,2]
[327764619,1716449445426,-153.0,0.00032877,2]
[327764620,1716449445436,-153.0,0.00032877,2]
[327764621,1716449445445,-1000.0,0.00032899,6]
[327764622,1716449445454,-8215.92995599,0.000329,3]
[327764623,1716449445464,-153.7849458,0.00032953,7]
[327764624,1716449445473,-155.04496304,0.00032956,2]
[327764625,1716449445482,-820.70125026,0.00033,4]
[327764626,1716449445491,-527.92219504,0.00033,2]
[327764627,1716449445501,-1000.0,0.00033,24]
[327764628,1716449445510,-239.214,0.00033134,2]
[327764629,1716449445519,-160.0,0.00033189,4]
[327764630,1716449445528,-116374.31959044,0.000333,2]
[327764631,1716449445537,-281.0,0.000333,6]
[327764632,1716449445547,-171.253914,0.000333,2]
[327764633,1716449445556,-223.75896276,0.00033321,4]
[327764634,1716449445565,-151.0,0.00033322,2]
[327764635,1716449445574,-151.0,0.00033322,2]
[327764636,1716449445583,-151.0,0.00033322,2]
[327764637,1716449445592,-151.0,0.00033322,2]
[327764638,1716449445602,-151.0,0.00033322,2]
[327764639,1716449445610,-151.0,0.00033322,2]
[327764640,1716449445620,-179.474947,0.00033322,2]
[327764641,1716449445630,-151.0,0.00033322,2]
[327764642,1716449445639,-179.474947,0.00033322,2]
[327764643,1716449445649,-151.0,0.00033322,2]
[327764644,1716449445658,-152.403553,0.00033322,2]
[327764645,1716449445673,-151.0,0.00033322,2]
[327764646,1716449445683,-151.0,0.00033322,2]
[327764647,1716449445692,-3846.425806,0.00033322,2]
[327764648,1716449445703,-155.47686998,0.00033322,4]
[327764649,1716449445713,-498.48451784,0.00033322,4]
[327764650,1716449445723,-302.38073973,0.00033322,4]
[327764651,1716449445732,-155.0418613,0.00033322,4]
[327764652,1716449445741,-4345.8101556,0.00033322,4]
[327764653,1716449445754,-159.63743662,0.00033322,4]
[327764654,1716449445763,-1933.74004357,0.00033322,4]
[327764655,1716449445773,-155.48525777,0.00033322,4]
[327764656,1716449445782,-1634.63475392,0.00033323,5]
[327764657,1716449445792,-151.0,0.00033324,2]
[327764658,1716449445802,-151.0,0.00033324,2]
[327764659,1716449445811,-198.345706,0.00033324,2]
[327764660,1716449445821,-151.0,0.00033324,2]
[327764661,1716449445831,-151.0,0.00033324,2]
[327764662,1716449445840,-215.289862,0.00033324,2]
[327764663,1716449445850,-958.66255,0.00033324,2]
[327764664,1716449445859,-958.66255,0.00033324,2]
[327764665,1716449445868,-1167.33138,0.00033324,2]
[327764666,1716449445878,-1167.33138,0.00033324,2]
[327764667,1716449445887,-463.714218,0.00033324,2]
[327764668,1716449445897,-463.714218,0.00033324,2]
[327764669,1716449445906,-151.0,0.00033324,2]
[327764670,1716449445916,-151.0,0.00033324,2]
[327764671,1716449445925,-277.310004,0.00033324,2]
[327764672,1716449445936,-151.0,0.00033324,2]
[327764673,1716449445945,-252.658498,0.00033324,2]
[327764674,1716449445954,-217.728747,0.00033324,2]
[327764675,1716449445963,-217.728747,0.00033324,2]
[327764676,1716449445972,-350.172823,0.00033324,2]
[327764677,1716449445983,-350.172823,0.00033324,2]
[327764678,1716449445993,-151.0,0.00033324,2]
[327764679,1716449446002,-151.0,0.00033324,2]
[327764680,1716449446011,-1000.0,0.00033368,7]
[327764681,1716449446020,-6459.17335249,0.00033389,5]
[327764682,1716449446030,-1000.0,0.00033393,8]
[327764683,1716449446039,-4736.0,0.00033394,35]
[327764684,1716449446048,-281.0,0.000334,6]
[327764685,1716449446057,-281.0,0.000334,6]
[327764686,1716449446066,-14950.0,0.000334,9]
[327764687,1716449446075,-186.083204,0.000334,2]
[327764688,1716449446084,-179.474947,0.000334,2]
[327764689,1716449446094,-152.702348,0.000334,2]
[327764690,1716449446103,-179.474947,0.000334,2]
[327764691,1716449446112,-151.0,0.000334,2]
[327764692,1716449446122,-151.0,0.000334,2]
[327764693,1716449446131,-260.129633,0.000334,2]
[327764694,1716449446140,-3846.425806,0.000334,2]
[327764695,1716449446149,-4736.0,0.00033404,35]
[327764696,1716449446158,-4736.0,0.00033414,35]
[327764697,1716449446168,-1000.0,0.00033421,9]
[327764698,1716449446177,-217.728747,0.00033421,2]
[327764699,1716449446186,-217.728747,0.00033421,2]
[327764700,1716449446196,-350.172823,0.00033421,2]
[327764701,1716449446205,-350.172823,0.00033421,2]
[327764702,1716449446214,-151.0,0.00033421,2]
[327764703,1716449446223,-151.0,0.00033421,2]
[327764705,1716449446233,-285.12297754,0.00033422,4]
[327764706,1716449446242,-500.0,0.00033422,4]
[327764707,1716449446252,-167.34793583,0.00033422,4]
[327764708,1716449446261,-467.26833952,0.00033422,30]
[327764709,1716449446270,-5636.57709934,0.00033422,4]
[327764710,1716449446280,-155.31643959,0.00033422,4]
[327764711,1716449446290,-400.79054117,0.00033422,4]
[327764712,1716449446300,-400.0,0.00033422,2]
[327764713,1716449446310,-189.91157371,0.00033422,2]
[327764714,1716449446320,-2284.63832512,0.00033422,4]
[327764715,1716449446329,-154.93802479,0.00033422,4]
[327764716,1716449446339,-156.4485373,0.00033422,4]
[327764717,1716449446350,-1366.99220787,0.00033422,4]
[327764718,1716449446360,-1717.62384614,0.00033422,4]
[327764719,1716449446370,-720.18654452,0.00033422,4]
[327764720,1716449446380,-702.80759732,0.00033422,4]
[327764721,1716449446390,-1689.29713695,0.00033422,4]
[327764722,1716449446400,-151.0,0.00033422,2]
[327764723,1716449446409,-151.0,0.00033422,2]
[327764724,1716449446418,-151.0,0.00033422,2]
[327764725,1716449446428,-151.0,0.00033422,2]
[327764726,1716449446437,-151.0,0.00033422,2]
[327764728,1716449446447,-151.0,0.00033422,2]
[327764730,1716449446457,-151.0,0.00033422,2]
[327764732,1716449446467,-160.214844,0.00033422,2]
[327764733,1716449446476,-160.214844,0.00033422,2]
[327764734,1716449446486,-151.0,0.00033422,2]
[327764735,1716449446495,-151.0,0.00033422,2]
[327764736,1716449446504,-151.0,0.00033422,2]
[327764737,1716449446514,-151.0,0.00033422,2]
[327764738,1716449446523,-151.0,0.00033422,2]
[327764739,1716449446533,-958.66255,0.00033422,2]
[327764740,1716449446542,-958.66255,0.00033422,2]
[327764741,1716449446551,-1167.33138,0.00033422,2]
[327764742,1716449446561,-1167.33138,0.00033422,2]
[327764743,1716449446571,-463.714218,0.00033422,2]
[327764744,1716449446580,-463.714218,0.00033422,2]
[327764745,1716449446589,-151.0,0.00033422,2]
[327764746,1716449446599,-151.0,0.00033422,2]
[327764747,1716449446609,-151.0,0.00033422,2]
[327764748,1716449446618,-179.474947,0.00033422,2]
[327764749,1716449446628,-179.474947,0.00033422,2]
[327764750,1716449446638,-151.0,0.00033422,2]
[327764751,1716449446647,-151.0,0.00033422,2]
[327764752,1716449446760,-3846.425806,0.00033422,2]
[327764753,1716449446770,-1608.6,0.00033423,2]
[327764754,1716449446780,-1608.6,0.00033423,2]
[327764755,1716449446790,-1608.6,0.00033423,2]
[327764756,1716449446799,-1608.6,0.00033423,2]
[327764757,1716449446809,-1608.6,0.00033423,2]
[327764758,1716449446818,-1608.6,0.00033423,2]
[327764759,1716449446828,-1608.6,0.00033423,2]
[327764760,1716449446838,-1608.6,0.00033423,2]
[327764761,1716449446848,-1608.6,0.00033423,2]
[327764762,1716449446857,-1608.6,0.00033423,2]
[327764763,1716449446867,-151.0,0.00033423,2]
[327764764,1716449446876,-151.0,0.00033423,2]
[327764765,1716449446885,-152.677444,0.00033423,2]
[327764766,1716449446894,-204.17851931,0.00033423,10]
[327764767,1716449446904,-156.587575,0.00033423,2]
[327764768,1716449446913,-160.214844,0.00033423,2]
[327764769,1716449446923,-160.214844,0.00033423,2]
[327764770,1716449446932,-151.0,0.00033423,2]
[327764771,1716449446941,-238.37014,0.00033423,2]
[327764772,1716449446951,-151.0,0.00033423,2]
[327764773,1716449446960,-151.0,0.00033423,2]
[327764774,1716449446970,-958.66255,0.00033423,2]
[327764775,1716449446980,-958.66255,0.00033423,2]
[327764776,1716449446989,-1167.33138,0.00033423,2]
[327764777,1716449446999,-1167.33138,0.00033423,2]
[327764778,1716449447008,-463.714218,0.00033423,2]
[327764779,1716449447017,-463.714218,0.00033423,2]
[327764780,1716449447027,-151.0,0.00033423,2]
[327764781,1716449447037,-151.0,0.00033423,2]
[327764782,1716449447047,-151.0,0.00033423,2]
[327764783,1716449447056,-217.728747,0.00033423,2]
[327764784,1716449447065,-217.728747,0.00033423,2]
[327764785,1716449447075,-350.172823,0.00033423,2]
[327764786,1716449447084,-350.172823,0.00033423,2]
[327764787,1716449447093,-151.0,0.00033423,2]
[327764788,1716449447103,-231.401189,0.00033423,2]
[327764789,1716449447112,-3966.45254814,0.00033424,11]
[327764790,1716449447121,-500.0,0.00033424,2]
[327764791,1716449447131,-500.0,0.00033424,6]
[327764792,1716449447140,-500.0,0.00033424,6]
[327764793,1716449447150,-505.23315781,0.00033424,2]
[327764794,1716449447160,-944.0,0.00033424,6]
[327764795,1716449447169,-500.0,0.00033424,6]
[327764796,1716449447179,-502.90918764,0.00033424,6]
[327764797,1716449447189,-500.0,0.00033424,6]
[327764798,1716449447198,-500.0,0.00033424,6]
[327764799,1716449447207,-1114.21,0.00033424,6]
[327764800,1716449447216,-500.0,0.00033424,6]
[327764801,1716449447226,-151.0,0.00033424,2]
[327764802,1716449447235,-151.0,0.00033424,2]
[327764803,1716449447244,-500.0,0.00033424,6]
[327764804,1716449447253,-151.0,0.00033424,2]
[327764805,1716449447262,-500.0,0.00033424,6]
[327764806,1716449447271,-151.0,0.00033424,2]
[327764807,1716449447280,-500.0,0.00033424,4]
[327764808,1716449447289,-151.0,0.00033424,2]
[327764809,1716449447298,-151.0,0.00033424,2]
[327764810,1716449447308,-500.0,0.00033424,6]
[327764811,1716449447317,-191.917566,0.00033424,2]
[327764812,1716449447326,-500.0,0.00033424,6]
[327764813,1716449447335,-500.0,0.00033424,6]
[327764814,1716449447345,-500.0,0.00033424,6]
[327764815,1716449447354,-504.94323488,0.00033424,6]
[327764816,1716449447364,-500.0,0.00033424,6]
[327764817,1716449447374,-500.0,0.00033424,6]
[327764818,1716449447383,-500.0,0.00033424,6]
[327764819,1716449447392,-500.0,0.00033424,6]
[327764820,1716449447401,-151.0,0.00033424,2]
[327764821,1716449447411,-151.0,0.00033424,2]
[327764822,1716449447420,-757.1,0.00033424,6]
[327764823,1716449447429,-500.0,0.00033424,6]
[327764824,1716449447438,-500.0,0.00033424,6]
[327764825,1716449447447,-500.0,0.00033424,6]
[327764826,1716449447457,-500.0,0.00033424,6]
[327764827,1716449447466,-500.0,0.00033424,6]
[327764828,1716449447475,-500.0,0.00033424,6]
[327764829,1716449447484,-500.0,0.00033424,6]
[327764830,1716449447493,-500.0,0.00033424,6]
[327764831,1716449447503,-500.0,0.00033424,6]
[327764832,1716449447512,-837.81,0.00033424,6]
[327764833,1716449447521,-500.0,0.00033424,6]
[327764834,1716449447530,-576.55,0.00033424,6]
[327764835,1716449447540,-500.0,0.00033424,6]
[327764836,1716449447549,-500.0,0.00033424,6]
[327764837,1716449447558,-500.0,0.00033424,6]
[327764838,1716449447568,-1230.37,0.00033424,6]
[327764839,1716449447578,-503.75044318,0.00033424,6]
[327764840,1716449447587,-151.0,0.00033424,2]
[327764841,1716449447597,-151.0,0.00033424,2]
[327764842,1716449447608,-151.0,0.00033424,2]
[327764843,1716449447617,-151.0,0.00033424,2]
[327764844,1716449447627,-644.9,0.00033424,6]
[327764845,1716449447636,-151.0,0.00033424,2]
[327764846,1716449447646,-163.932426,0.00033424,2]
[327764847,1716449447655,-500.0,0.00033424,6]
[327764848,1716449447668,-500.0,0.00033424,6]
[327764849,1716449447678,-587.64,0.00033424,6]
[327764850,1716449447687,-817.95,0.00033424,6]
[327764851,1716449447696,-500.0,0.00033424,6]
[327764852,1716449447706,-500.0,0.00033424,6]
[327764853,1716449447715,-497.92997623,0.00033424,6]
[327764854,1716449447728,-505.03966758,0.00033424,6]
[327764855,1716449447737,-500.0,0.00033424,6]
[327764856,1716449447749,-500.0,0.00033424,6]
[327764857,1716449447759,-500.0,0.00033424,6]
[327764858,1716449447768,-500.0,0.00033424,6]
[327764859,1716449447778,-300.0,0.00033424,6]
[327764860,1716449447787,-502.85626367,0.00033424,6]
[327764861,1716449447796,-500.0,0.00033424,6]
[327764862,1716449447805,-500.0,0.00033424,6]
[327764863,1716449447815,-500.0,0.00033424,6]
[327764864,1716449447824,-500.0,0.00033424,6]
[327764865,1716449447833,-3134.33,0.00033424,6]
[327764866,1716449447843,-599.71,0.00033424,6]
[327764867,1716449447853,-500.0,0.00033424,6]
[327764868,1716449447862,-500.0,0.00033424,6]
[327764869,1716449447871,-767.43,0.00033424,6]
[327764870,1716449447881,-500.0,0.00033424,6]
[327764871,1716449447891,-805.3,0.00033424,6]
[327764872,1716449447900,-550.92549102,0.00033424,6]
[327764873,1716449447910,-1000.0,0.00033424,6]
[327764874,1716449447919,-500.0,0.00033424,6]
[327764875,1716449447928,-542.00936476,0.00033424,6]
[327764876,1716449447938,-500.0,0.00033424,6]
[327764877,1716449447947,-500.0,0.00033424,6]
[327764878,1716449447957,-857.66,0.00033424,6]
[327764879,1716449447966,-500.0,0.00033424,6]
[327764880,1716449447975,-501.5498872,0.00033424,6]
[327764881,1716449447984,-500.0,0.00033424,6]
[327764882,1716449447993,-640.39303991,0.00033424,6]
[327764883,1716449448003,-500.0,0.00033424,6]
[327764884,1716449448012,-428.41447093,0.00033424,6]
[327764885,1716449448021,-544.17925554,0.00033424,6]
[327764886,1716449448031,-500.0,0.00033424,6]
[327764887,1716449448040,-506.31742464,0.00033424,6]
[327764888,1716449448049,-552.4,0.00033424,6]
[327764889,1716449448059,-645.43,0.00033424,6]
[327764890,1716449448068,-500.0,0.00033424,6]
[327764891,1716449448078,-525.61209078,0.00033424,6]
[327764892,1716449448087,-500.0,0.00033424,6]
[327764893,1716449448097,-500.0,0.00033424,6]
[327764894,1716449448107,-1865.94,0.00033424,6]
[327764895,1716449448117,-500.0,0.00033424,6]
[327764896,1716449448126,-672.57,0.00033424,6]
[327764897,1716449448136,-500.0,0.00033424,6]
[327764898,1716449448145,-500.0,0.00033424,6]
[327764899,1716449448155,-204.98303212,0.00033424,6]
[327764900,1716449448165,-500.0,0.00033424,6]
[327764901,1716449448174,-500.0,0.00033424,7]
[327764902,1716449448183,-510.45115329,0.00033424,8]
[327764903,1716449448195,-500.0,0.00033424,6]
[327764904,1716449448204,-502.71051846,0.00033424,6]
[327764905,1716449448214,-506.83517634,0.00033424,6]
[327764906,1716449448223,-500.0,0.00033424,6]
[327764907,1716449448233,-554.21,0.00033424,6]
[327764908,1716449448242,-900.77,0.00033424,6]
[327764909,1716449448252,-500.0,0.00033424,6]
[327764910,1716449448263,-500.0,0.00033424,6]
[327764911,1716449448272,-500.0,0.00033424,6]
[327764912,1716449448282,-500.0,0.00033424,6]
[327764913,1716449448291,-500.0,0.00033424,6]
[327764914,1716449448300,-500.0,0.00033424,6]
[327764915,1716449448312,-781.04,0.00033424,6]
[327764916,1716449448324,-500.0,0.00033424,6]
[327764917,1716449448334,-500.0,0.00033424,6]
[327764918,1716449448344,-1087.23,0.00033424,6]
[327764919,1716449448353,-1000.0,0.00033424,2]
[327764920,1716449448362,-503.33447145,0.00033424,6]
[327764921,1716449448371,-500.0,0.00033424,6]
[327764922,1716449448381,-541.94443595,0.00033424,6]
[327764923,1716449448390,-500.0,0.00033424,6]
[327764924,1716449448399,-220.77037232,0.00033424,6]
[327764925,1716449448409,-500.0,0.00033424,6]
[327764926,1716449448418,-777.9,0.00033424,6]
[327764927,1716449448427,-500.0,0.00033424,7]